bitfinex/quotes_SOLUSD_20251119
["timestamp","ask_amount","ask_price","bid_price","bid_amount"]
[1763523818243,3.25093789,140.42,140.38,4.26]
[1763523818422,0.72,140.41,140.38,4.26]
[1763523819932,0.72,140.41,140.37,3.25093789]
[1763523820133,0.72,140.41,140.38,4.26]
[1763523820327,0.72,140.41,140.37,3.25093789]
[1763523820535,0.72,140.41,140.38,4.26]
[1763523822135,0.72,140.41,140.38,7.51093789]
[1763523823863,0.66,140.44,140.4,3.25093789]
[1763523824024,0.66,140.43,140.41,3.25093789]
[1763523824926,18.78096,140.45,140.42,3.25093789]
[1763523825222,0.66,140.44,140.42,3.25093789]
[1763523826854,0.66,140.44,140.41,4.26]
[1763523827062,0.66,140.44,140.42,3.25093789]
[1763523828065,18.12096,140.45,140.43,3.25093789]
[1763523828234,18.78096,140.45,140.44,3.25093789]
[1763523829551,18.78096,140.45,140.43,3.25093789]
[1763523830155,0.66,140.44,140.38,18.12096]
[1763523830334,18.12096,140.45,140.42,3.25093789]
[1763523830540,18.78096,140.45,140.43,3.25093789]
[1763523830850,18.12096,140.45,140.42,3.25093789]
[1763523831032,0.66,140.44,140.42,3.25093789]
[1763523832554,18.78096,140.45,140.42,3.25093789]
[1763523834355,18.12096,140.45,140.42,3.25093789]
[1763523834533,0.66,140.44,140.42,3.25093789]
[1763523835532,0.66,140.47,140.43,3.25093789]
[1763523835731,0.66,140.47,140.45,3.25093789]
[1763523838741,0.66,140.47,140.44,4.26]
[1763523838943,0.66,140.47,140.44,7.51093789]
[1763523839666,3.91093789,140.47,140.42,3.25093789]
[1763523839965,0.66,140.46,140.42,4.26]
[1763523840562,18.78096,140.46,140.4,4.26]
[1763523840737,18.78096,140.46,140.4,7.51093789]
[1763523840738,22.03189789,140.46,140.4,7.51093789]
[1763523840942,0.66,140.45,140.4,7.51093789]
[1763523842933,14.04882769,140.49,140.42,3.25093789]
[1763523843138,0.66,140.45,140.42,3.25093789]
[1763523843668,3.25093789,140.49,140.43,3.25093789]
[1763523843859,0.66,140.47,140.44,3.25093789]
[1763523844245,0.66,140.47,140.43,3.25093789]
[1763523845646,0.66,140.47,140.44,3.25093789]
[1763523847436,0.66,140.47,140.43,7.51093789]
[1763523849370,3.91093789,140.47,140.43,4.26]
[1763523849671,3.25093789,140.45,140.39,7.51093789]
[1763523850050,0.66,140.44,140.39,7.51093789]
[1763523852467,0.66,140.44,140.4,3.25093789]
[1763523854267,0.66,140.44,140.41,3.25093789]
[1763523854570,0.72,140.47,140.43,3.25093789]
[1763523854767,0.72,140.47,140.45,3.25093789]
[1763523855074,0.72,140.47,140.44,3.25093789]
[1763523855269,0.72,140.47,140.4,4.26]
[1763523855467,0.72,140.47,140.42,7.51093789]
[1763523856148,0.72,140.47,140.43,3.25093789]
[1763523856350,0.72,140.47,140.42,7.51093789]
[1763523856850,0.72,140.47,140.42,4.26]
[1763523857174,0.72,140.47,140.42,7.51093789]
[1763523858373,0.72,140.47,140.43,3.25093789]
[1763523858574,0.72,140.47,140.44,3.25093789]
[1763523858878,0.72,140.49,140.46,3.25093789]
[1763523859179,0.2,140.5,140.48,3.25093789]
[1763523859370,0.2,140.5,140.49,3.25093789]
[1763523860271,0.2,140.5,140.49,13.03976558]
[1763523860470,0.72,140.5,140.47,2.85479784]
[1763523860675,0.72,140.5,140.45,4.26]
[1763523860886,0.72,140.5,140.45,3.25093789]
[1763523861177,0.72,140.5,140.44,7.51093789]
[1763523861369,3.97093789,140.5,140.44,7.51093789]
[1763523861676,3.97093789,140.5,140.44,4.26]
[1763523861856,3.97093789,140.49,140.43,3.25093789]
[1763523862057,3.25093789,140.48,140.43,4.26]
[1763523862253,3.97093789,140.48,140.43,4.26]
[1763523862461,0.72,140.47,140.43,7.51093789]
[1763523862871,0.72,140.47,140.43,4.26]
[1763523863177,0.72,140.47,140.43,13.32525126]
[1763523863766,27.90621126,140.47,140.41,9.06525126]
[1763523863963,27.90621126,140.47,140.41,13.32525126]
[1763523864274,0.72,140.46,140.41,4.26]
[1763523864462,0.72,140.46,140.41,13.32525126]
[1763523865482,0.72,140.46,140.42,9.06525126]
[1763523865683,18.12096,140.47,140.45,9.06525126]
[1763523865854,0.2,140.51,140.45,9.06525126]
[1763523865855,9.26525126,140.51,140.45,9.06525126]
[1763523866056,18.12096,140.48,140.44,9.06525126]
[1763523866378,18.12096,140.48,140.44,13.32525126]
[1763523866571,0.72,140.47,140.44,13.32525126]
[1763523867174,0.72,140.47,140.44,4.26]
[1763523867569,9.78525126,140.47,140.44,4.26]
[1763523868180,0.72,140.46,140.44,4.26]
[1763523870779,0.72,140.46,140.4,9.68586669]
[1763523870780,24.26682669,140.46,140.4,9.68586669]
[1763523870987,0.72,140.45,140.4,4.26]
[1763523873894,6.14586669,140.45,140.4,4.26]
[1763523874189,18.12096,140.42,140.4,4.26]
[1763523874369,18.12096,140.42,140.38,5.42586669]
[1763523874578,0.68,140.41,140.38,4.26]
[1763523875088,6.10586669,140.41,140.35,5.42586669]
[1763523875288,6.10586669,140.41,140.35,9.68586669]
[1763523875591,0.68,140.4,140.36,5.42586669]
[1763523876493,0.68,140.4,140.36,9.68586669]
[1763523876870,0.68,140.4,140.36,4.26]
[1763523877079,18.12096,140.36,140.3,5.42586669]
[1763523877290,5.42586669,140.35,140.29,10.50586669]
[1763523877495,6.10586669,140.35,140.29,10.50586669]
[1763523877692,0.68,140.34,140.29,6.24586669]
[1763523877871,0.68,140.34,140.29,10.50586669]
[1763523878068,0.68,140.34,140.3,4.26]
[1763523878965,0.68,140.34,140.29,6.24586669]
[1763523879367,0.68,140.34,140.29,10.50586669]
[1763523880303,0.68,140.34,140.29,6.24586669]
[1763523880478,0.68,140.34,140.3,9.68586669]
[1763523880802,0.68,140.34,140.3,4.26]
[1763523881689,6.10586669,140.34,140.3,4.26]
[1763523881888,0.68,140.33,140.29,0.1]
[1763523883096,24.22682669,140.33,140.29,0.1]
[1763523883272,24.25682669,140.32,140.29,0.1]
[1763523883471,0.71,140.31,140.29,0.1]
[1763523883671,6.13586669,140.31,140.29,0.1]
[1763523884004,0.71,140.31,140.29,0.1]
[1763523884202,0.71,140.3,140.29,0.1]
[1763523884406,24.25682669,140.3,140.29,0.1]
[1763523884576,5.42586669,140.28,140.27,0.1]
[1763523884780,6.13586669,140.28,140.27,0.1]
[1763523885083,0.71,140.28,140.27,0.1]
[1763523891502,0.71,140.34,140.27,7.10839632]
[1763523891697,4.72839632,140.38,140.32,2.08839632]
[1763523891906,18.12096,140.35,140.32,2.08839632]
[1763523892203,2.79839632,140.37,140.31,2.08839632]
[1763523892394,6.34839632,140.36,140.3,2.08839632]
[1763523892599,7.05839632,140.36,140.3,2.08839632]
[1763523892798,6.14361279,140.35,140.27,5.02]
[1763523893001,6.14361279,140.35,140.29,5.43361279]
[1763523893215,0.71,140.34,140.29,5.43361279]
[1763523893398,0.71,140.34,140.3,5.43361279]
[1763523893801,0.71,140.34,140.29,5.43361279]
[1763523895616,5.43361279,140.33,140.28,5.43361279]
[1763523896005,0.71,140.32,140.28,5.43361279]
[1763523896218,0.71,140.32,140.27,5.53361279]
[1763523896420,0.71,140.32,140.27,6.19361279]
[1763523896599,0.71,140.32,140.27,0.76]
[1763523896807,0.71,140.32,140.27,5.53361279]
[1763523897107,0.71,140.32,140.27,6.19361279]
[1763523897615,0.71,140.32,140.28,6.09361279]
[1763523898792,5.43361279,140.31,140.27,0.1]
[1763523898996,18.12096,140.29,140.27,0.1]
[1763523899503,18.83096,140.29,140.27,0.1]
[1763523900110,18.83096,140.28,140.27,0.1]
[1763523900620,18.12096,140.28,140.27,0.1]
[1763523900802,18.83096,140.28,140.27,0.1]
[1763523901425,18.12096,140.29,140.27,0.1]
[1763523901607,0.71,140.29,140.27,0.1]
[1763523902127,0.71,140.28,140.27,0.1]
[1763523902619,18.83096,140.3,140.27,0.1]
[1763523902803,0.71,140.3,140.27,0.1]
[1763523903233,5.43361279,140.31,140.27,0.1]
[1763523903411,6.14361279,140.31,140.27,0.1]
[1763523903719,0.71,140.3,140.27,0.1]
[1763523903927,6.14361279,140.3,140.27,0.1]
[1763523904104,24.26457279,140.3,140.27,0.1]
[1763523904305,0.71,140.29,140.27,0.1]
[1763523905006,6.14361279,140.29,140.27,0.1]
[1763523905513,0.71,140.28,140.27,0.1]
[1763523906056,18.83096,140.28,140.27,0.1]
[1763523906213,18.12096,140.29,140.27,0.1]
[1763523906398,18.83096,140.29,140.27,0.1]
[1763523906813,0.71,140.28,140.27,0.1]
[1763523907332,4.26,140.3,140.27,0.1]
[1763523907333,18.12096,140.3,140.27,6.19361279]
[1763523907501,0.71,140.32,140.28,5.43361279]
[1763523907700,0.71,140.32,140.27,6.19361279]
[1763523907901,18.12096,140.3,140.27,6.19361279]
[1763523908621,0.71,140.32,140.27,6.19361279]
[1763523908828,0.71,140.31,140.27,6.19361279]
[1763523909417,0.71,140.33,140.28,6.09361279]
[1763523909622,5.43361279,140.36,140.31,5.43361279]
[1763523910026,6.14361279,140.35,140.3,6.09361279]
[1763523910705,18.12096,140.36,140.3,6.09361279]
[1763523910908,0.71,140.35,140.3,6.09361279]
[1763523911110,0.71,140.35,140.3,0.66]
[1763523911432,0.71,140.35,140.28,6.09361279]
[1763523911433,5.43361279,140.39,140.33,5.43361279]
[1763523911614,24.26457279,140.39,140.33,5.43361279]
[1763523911814,24.26457279,140.39,140.33,6.09361279]
[1763523912326,23.55457279,140.36,140.3,0.66]
[1763523912527,23.55457279,140.36,140.3,6.09361279]
[1763523912701,18.12096,140.3,140.28,6.09361279]
[1763523912902,23.55457279,140.33,140.27,6.21361279]
[1763523913114,18.83096,140.33,140.28,5.43361279]
[1763523913524,6.14361279,140.32,140.27,6.21361279]
[1763523913723,6.14361279,140.32,140.27,0.78]
[1763523914109,0.71,140.32,140.27,6.21361279]
[1763523914819,0.71,140.32,140.27,10.47361279]
[1763523915340,18.12096,140.33,140.29,5.43361279]
[1763523915710,18.83096,140.33,140.29,5.43361279]
[1763523915925,18.83096,140.33,140.28,6.11361279]
[1763523916430,0.71,140.32,140.28,6.11361279]
[1763523916808,5.43361279,140.3,140.27,0.1]
[1763523917302,6.14361279,140.29,140.27,0.1]
[1763523917701,0.71,140.29,140.27,0.1]
[1763523918326,6.14361279,140.29,140.27,0.1]
[1763523918541,0.71,140.29,140.27,0.1]
[1763523918704,0.71,140.28,140.27,0.1]
[1763523919519,22.38096,140.33,140.27,0.1]
[1763523919712,5.43361279,140.31,140.27,0.1]
[1763523920226,0.71,140.3,140.27,0.1]
[1763523920430,6.14361279,140.3,140.27,0.1]
[1763523921133,0.71,140.29,140.27,0.1]
[1763523921304,0.71,140.33,140.28,0.68]
[1763523921506,6.14361279,140.32,140.27,0.1]
[1763523921926,0.71,140.31,140.27,0.78]
[1763523923134,6.14361279,140.31,140.27,0.1]
[1763523923544,0.7,140.3,140.27,0.1]
[1763523923738,0.7,140.31,140.27,0.1]
[1763523924037,0.7,140.31,140.27,0.82]
[1763523924216,0.7,140.31,140.27,0.1]
[1763523924416,0.7,140.31,140.27,0.82]
[1763523924641,0.7,140.35,140.28,5.43361279]
[1763523924852,0.7,140.35,140.29,5.43361279]
[1763523925220,18.12096,140.36,140.31,5.43361279]
[1763523925424,0.7,140.37,140.32,0.72]
[1763523925643,18.12096,140.35,140.32,6.15361279]
[1763523925830,18.12096,140.35,140.32,0.72]
[1763523927439,0.7,140.34,140.28,4.26]
[1763523927646,0.7,140.34,140.29,5.43361279]
[1763523927817,0.7,140.34,140.29,6.15361279]
[1763523928421,0.7,140.34,140.29,0.72]
[1763523928621,6.13361279,140.34,140.29,0.72]
[1763523928816,0.7,140.34,140.29,0.72]
[1763523929528,0.7,140.34,140.29,6.15361279]
[1763523930851,0.7,140.34,140.29,9.80223465]
[1763523931643,0.7,140.34,140.29,0.72]
[1763523932023,9.78223465,140.34,140.29,0.72]
[1763523932457,0.7,140.33,140.28,9.08223465]
[1763523932642,9.08223465,140.32,140.27,4.36]
[1763523932949,9.08223465,140.3,140.27,0.1]
[1763523933123,0.7,140.31,140.27,0.82]
[1763523933327,27.20319465,140.33,140.27,9.90223465]
[1763523933527,0.7,140.32,140.27,0.82]
[1763523933845,9.78223465,140.32,140.27,0.1]
[1763523934050,0.7,140.32,140.27,0.1]
[1763523934248,0.7,140.31,140.27,0.1]
[1763523935654,9.78223465,140.31,140.27,0.1]
[1763523935832,9.08223465,140.3,140.27,0.1]
[1763523936154,0.7,140.3,140.27,0.1]
[1763523936349,0.7,140.29,140.27,0.1]
[1763523938150,9.08223465,140.31,140.27,0.1]
[1763523938151,0.7,140.31,140.27,0.1]
[1763523938331,27.20319465,140.33,140.27,9.90223465]
[1763523938532,0.7,140.32,140.27,9.90223465]
[1763523939431,0.7,140.32,140.27,0.82]
[1763523940839,9.78223465,140.32,140.27,0.82]
[1763523941044,0.7,140.32,140.27,0.82]
[1763523941343,0.7,140.31,140.27,0.82]
[1763523942046,18.82096,140.33,140.27,9.90223465]
[1763523942249,9.78223465,140.33,140.27,9.90223465]
[1763523942434,0.65,140.36,140.31,9.08223465]
[1763523942754,0.65,140.37,140.33,9.08223465]
[1763523942928,0.65,140.37,140.32,9.77223465]
[1763523943349,0.65,140.37,140.33,0.69]
[1763523944563,0.65,140.37,140.31,13.34223465]
[1763523944726,0.65,140.37,140.33,0.69]
[1763523945530,9.73223465,140.37,140.31,14.03223465]
[1763523946443,0.65,140.37,140.32,9.77223465]
[1763523946637,9.73223465,140.39,140.33,9.77223465]
[1763523946938,0.65,140.39,140.34,9.08223465]
[1763523947142,0.65,140.39,140.34,9.77223465]
[1763523947451,0.65,140.39,140.35,0.69]
[1763523947832,0.65,140.39,140.35,4.95]
[1763523948038,4.26,140.41,140.36,9.08223465]
[1763523948233,0.65,140.43,140.36,9.77223465]
[1763523948443,9.73223465,140.43,140.37,9.77223465]
[1763523948742,18.12096,140.4,140.37,9.77223465]
[1763523948945,18.12096,140.4,140.36,9.08223465]
[1763523949146,18.12096,140.4,140.36,9.77223465]
[1763523949455,0.65,140.4,140.36,9.77223465]
[1763523949658,0.65,140.4,140.35,4.26]
[1763523949659,0.65,140.39,140.34,9.08223465]
[1763523949839,0.65,140.39,140.35,4.26]
[1763523949840,9.73223465,140.39,140.35,4.26]
[1763523950237,0.65,140.38,140.35,4.26]
[1763523951542,9.73223465,140.38,140.31,0.69]
[1763523951752,9.73223465,140.38,140.32,4.26]
[1763523952057,0.65,140.37,140.32,13.34223465]
[1763523952260,0.65,140.37,140.32,14.03223465]
[1763523952833,0.65,140.37,140.33,0.69]
[1763523953069,0.65,140.37,140.29,9.78882769]
[1763523953258,0.65,140.37,140.29,13.34223465]
[1763523953259,9.08223465,140.35,140.29,13.34223465]
[1763523953456,9.73223465,140.34,140.29,4.26]
[1763523953766,9.08223465,140.33,140.29,4.26]
[1763523953962,9.73223465,140.33,140.29,4.26]
[1763523954137,9.73223465,140.32,140.29,4.26]
[1763523954540,9.08223465,140.33,140.29,4.26]
[1763523954740,0.65,140.32,140.29,4.26]
[1763523955966,9.73223465,140.32,140.29,4.26]
[1763523956267,0.65,140.32,140.29,4.26]
[1763523956466,9.08223465,140.31,140.29,4.26]
[1763523956944,9.73223465,140.31,140.29,4.26]
[1763523957867,9.73223465,140.3,140.27,0.1]
[1763523958939,9.73223465,140.29,140.27,0.1]
[1763523959344,0.65,140.28,140.27,0.1]
[1763523959954,9.08223465,140.29,140.27,0.1]
[1763523960151,9.78882769,140.34,140.27,0.1]
[1763523960341,27.90978769,140.36,140.28,4.26]
[1763523960539,9.08223465,140.33,140.28,4.26]
[1763523960771,9.08223465,140.33,140.28,4.95]
[1763523960968,9.73223465,140.33,140.28,4.95]
[1763523961161,9.73223465,140.33,140.28,4.26]
[1763523961342,9.08223465,140.33,140.28,4.95]
[1763523961536,0.65,140.32,140.28,4.95]
[1763523961964,9.73223465,140.32,140.28,4.26]
[1763523962167,9.08223465,140.31,140.27,0.1]
[1763523962342,9.73223465,140.31,140.28,4.26]
[1763523962867,9.73223465,140.3,140.27,4.36]
[1763523963653,0.65,140.3,140.27,4.36]
[1763523964467,9.08223465,140.31,140.27,5.05]
[1763523964770,9.73223465,140.31,140.27,5.05]
[1763523965067,0.65,140.31,140.27,5.05]
[1763523965366,27.20319465,140.33,140.28,0.69]
[1763523965788,27.85319465,140.33,140.28,0.69]
[1763523966088,0.65,140.33,140.28,9.77223465]
[1763523966569,0.65,140.33,140.28,9.08223465]
[1763523966762,9.08223465,140.34,140.29,0.69]
[1763523966972,0.65,140.35,140.29,9.77223465]
[1763523967664,9.73223465,140.35,140.29,9.77223465]
[1763523970967,9.73223465,140.35,140.29,9.08223465]
[1763523971154,9.73223465,140.35,140.3,0.69]
[1763523971354,9.73223465,140.35,140.31,4.26]
[1763523971568,9.73223465,140.34,140.31,4.26]
[1763523971764,9.08223465,140.33,140.31,4.26]
[1763523971966,9.73223465,140.33,140.31,4.26]
[1763523972876,9.08223465,140.33,140.31,4.26]
[1763523973675,0.71,140.32,140.31,4.26]
[1763523973974,9.79223465,140.32,140.31,4.26]
[1763523974375,9.79223465,140.32,140.27,0.1]
[1763523974568,9.79223465,140.31,140.28,4.26]
[1763523974751,9.08223465,140.3,140.28,4.26]
[1763523974954,9.79223465,140.3,140.28,4.26]
[1763523975154,0.71,140.29,140.28,4.26]
[1763523975451,9.79223465,140.32,140.28,4.26]
[1763523975645,9.08223465,140.31,140.28,4.26]
[1763523975866,9.79223465,140.31,140.28,4.26]
[1763523976574,9.08223465,140.31,140.28,4.26]
[1763523976753,9.79223465,140.3,140.28,4.26]
[1763523977155,9.79223465,140.31,140.28,4.26]
[1763523977660,0.71,140.31,140.28,4.26]
[1763523977981,9.79223465,140.35,140.29,9.78223465]
[1763523978488,9.79223465,140.35,140.3,0.7]
[1763523978978,0.71,140.34,140.3,0.7]
[1763523979369,9.79223465,140.34,140.3,0.7]
[1763523979684,0.71,140.34,140.3,0.7]
[1763523979863,0.71,140.33,140.28,14.04223465]
[1763523980068,0.71,140.33,140.29,0.7]
[1763523981859,9.79223465,140.35,140.29,9.78223465]
[1763523982057,9.08223465,140.34,140.29,0.7]
[1763523982480,9.76223465,140.34,140.29,0.7]
[1763523982887,0.68,140.33,140.29,0.7]
[1763523983265,9.76223465,140.33,140.29,0.7]
[1763523983689,9.76223465,140.32,140.27,0.1]
[1763523983895,9.76223465,140.32,140.29,4.26]
[1763523984276,0.68,140.32,140.29,4.26]
[1763523984470,0.68,140.31,140.29,4.26]
[1763523985290,0.68,140.31,140.27,0.1]
[1763523985463,9.08223465,140.3,140.27,4.36]
[1763523985789,9.76223465,140.31,140.27,0.1]
[1763523985988,0.68,140.3,140.27,0.1]
[1763523988666,0.68,140.3,140.27,4.36]
[1763523989089,0.68,140.32,140.27,14.14223465]
[1763523989388,0.68,140.32,140.28,0.7]
[1763523989690,0.68,140.32,140.27,14.14223465]
[1763523989861,9.76223465,140.32,140.28,4.26]
[1763523990264,0.68,140.31,140.28,4.26]
[1763523990775,9.76223465,140.33,140.28,4.96]
[1763523991290,0.68,140.32,140.28,4.26]
[1763523991473,0.68,140.33,140.29,0.7]
[1763523993793,0.68,140.34,140.29,0.7]
[1763523993997,0.68,140.34,140.29,6.13387823]
[1763523994876,0.68,140.34,140.29,2.78641391]
[1763523995080,2.76641391,140.34,140.3,4.26]
[1763523995395,2.08641391,140.32,140.3,4.26]
[1763523995803,0.68,140.31,140.28,4.26]
[1763523996576,0.68,140.31,140.27,0.1]
[1763523996774,0.68,140.31,140.28,4.26]
[1763523997407,0.68,140.31,140.28,4.96]
[1763523997586,0.68,140.31,140.28,4.26]
[1763523997978,0.68,140.35,140.29,2.78641391]
[1763523998408,20.20737391,140.37,140.3,2.78641391]
[1763523998615,0.68,140.37,140.32,2.08641391]
[1763523998906,18.80096,140.38,140.33,6.34641391]
[1763523999309,18.80096,140.38,140.33,7.04641391]
[1763523999703,0.68,140.4,140.34,0.7]
[1763523999902,18.12096,140.38,140.34,0.7]
[1763524000426,0.68,140.4,140.35,2.08641391]
[1763524000927,18.80096,140.4,140.35,2.78641391]
[1763524001207,0.68,140.4,140.36,0.7]
[1763524001407,0.2,140.44,140.36,0.7]
[1763524001408,0.2,140.44,140.37,6.34641391]
[1763524001712,20.88737391,140.43,140.37,7.04641391]
[1763524001880,2.08641391,140.42,140.37,4.96]
[1763524002084,2.76641391,140.42,140.37,4.96]
[1763524002410,0.68,140.41,140.37,4.96]
[1763524002707,2.08641391,140.4,140.37,4.26]
[1763524003090,0.71,140.39,140.37,4.26]
[1763524003798,2.08641391,140.4,140.37,4.26]
[1763524003993,2.79641391,140.4,140.37,4.26]
[1763524004196,0.71,140.4,140.37,4.26]
[1763524004899,2.79641391,140.4,140.37,4.26]
[1763524005197,0.71,140.4,140.37,4.26]
[1763524009510,2.79641391,140.4,140.37,4.26]
[1763524009902,0.71,140.39,140.34,22.53391634]
[1763524010210,2.79641391,140.39,140.35,4.26]
[1763524010416,18.12096,140.42,140.36,2.08641391]
[1763524010417,18.83096,140.42,140.36,2.08641391]
[1763524010626,0.71,140.41,140.36,0.66]
[1763524010916,0.71,140.41,140.36,2.74641391]
[1763524011416,0.71,140.41,140.37,0.66]
[1763524011718,2.79641391,140.41,140.35,6.34641391]
[1763524012020,2.79641391,140.41,140.35,7.00641391]
[1763524012808,2.08641391,140.39,140.33,23.7639569]
[1763524013006,2.08641391,140.39,140.34,4.26]
[1763524013209,0.71,140.38,140.34,4.92]
[1763524013406,2.08641391,140.39,140.34,4.92]
[1763524013407,2.08641391,140.39,140.34,4.26]
[1763524013628,0.71,140.39,140.35,0.66]
[1763524015899,2.79641391,140.39,140.34,4.26]
[1763524016116,2.79641391,140.39,140.34,4.92]
[1763524016300,0.71,140.38,140.34,4.26]
[1763524016499,0.71,140.38,140.34,4.92]
[1763524019732,0.71,140.38,140.34,7.00641391]
[1763524019937,18.12096,140.42,140.34,6.34641391]
[1763524020117,2.79641391,140.41,140.35,2.74641391]
[1763524020310,2.08641391,140.41,140.35,2.74641391]
[1763524020625,2.79641391,140.4,140.34,6.34641391]
[1763524021002,0.71,140.39,140.34,6.34641391]
[1763524021199,2.79641391,140.39,140.34,4.26]
[1763524021402,0.71,140.39,140.35,0.66]
[1763524022337,2.08641391,140.38,140.32,21.59867284]
[1763524022503,0.71,140.39,140.3,18.12096]
[1763524022504,2.08641391,140.34,140.3,4.26]
[1763524022709,2.79641391,140.33,140.3,4.26]
[1763524023014,0.71,140.33,140.3,4.26]
[1763524023211,0.71,140.32,140.3,4.26]
[1763524023611,2.79641391,140.33,140.3,4.26]
[1763524023829,0.71,140.35,140.3,4.26]
[1763524024012,2.79641391,140.35,140.3,4.26]
[1763524024423,2.79641391,140.34,140.3,4.26]
[1763524024623,0.71,140.34,140.3,4.26]
[1763524024926,0.71,140.34,140.3,4.92]
[1763524026611,2.79641391,140.34,140.3,4.26]
[1763524026819,2.08641391,140.31,140.27,0.1]
[1763524027011,2.08641391,140.31,140.28,4.26]
[1763524027216,2.79641391,140.31,140.28,4.26]
[1763524027423,0.71,140.3,140.28,4.26]
[1763524027627,2.79641391,140.3,140.28,4.26]
[1763524028333,0.71,140.3,140.28,4.26]
[1763524029137,2.08641391,140.29,140.27,0.1]
[1763524029322,2.08641391,140.25,140.24,0.1]
[1763524029738,2.79641391,140.25,140.24,0.1]
[1763524033325,2.74641391,140.25,140.24,0.1]
[1763524033524,18.12096,140.29,140.24,0.1]
[1763524033751,2.74641391,140.26,140.24,0.1]
[1763524034046,2.08641391,140.27,140.24,0.78]
[1763524034242,2.08641391,140.27,140.24,0.1]
[1763524035528,2.08641391,140.25,140.24,0.1]
[1763524035929,2.74641391,140.25,140.24,0.1]
[1763524037928,4.26,140.28,140.24,0.1]
[1763524038147,2.08641391,140.26,140.24,0.1]
[1763524038358,2.74641391,140.27,140.24,0.1]
[1763524038527,2.74641391,140.26,140.24,0.1]
[1763524039058,0.66,140.26,140.24,0.1]
[1763524039234,2.74641391,140.26,140.24,0.1]
[1763524040331,0.66,140.26,140.24,0.1]
[1763524040525,2.08641391,140.27,140.24,0.1]
[1763524040748,20.86737391,140.28,140.24,0.78]
[1763524040951,24.21981606,140.28,140.24,0.78]
[1763524041461,18.78096,140.28,140.24,0.78]
[1763524041632,24.21981606,140.28,140.24,0.78]
[1763524041831,6.09885606,140.27,140.24,0.1]
[1763524042949,0.66,140.27,140.24,0.1]
[1763524043139,6.09885606,140.27,140.24,0.1]
[1763524043335,5.43885606,140.27,140.24,0.1]
[1763524043546,5.43885606,140.27,140.24,0.76]
[1763524044169,6.12885606,140.27,140.24,0.1]
[1763524044325,5.43885606,140.27,140.24,0.1]
[1763524044853,5.43885606,140.27,140.24,0.76]
[1763524046131,6.12885606,140.28,140.24,0.76]
[1763524046656,5.43885606,140.28,140.24,0.1]
[1763524046843,0.69,140.27,140.24,0.1]
[1763524047248,6.12885606,140.27,140.24,0.1]
[1763524048257,6.12885606,140.27,140.17,0.1]
[1763524048258,18.12096,140.24,140.17,0.1]
[1763524048443,5.43885606,140.21,140.17,0.1]
[1763524048829,5.43885606,140.2,140.17,0.1]
[1763524049035,6.12885606,140.21,140.17,0.1]
[1763524049851,6.12885606,140.21,140.17,0.76]
[1763524050057,0.69,140.27,140.2,5.43885606]
[1763524050238,5.43885606,140.26,140.2,5.43885606]
[1763524050439,5.43885606,140.26,140.21,0.66]
[1763524050648,6.12885606,140.25,140.21,0.66]
[1763524050850,0.69,140.25,140.21,0.66]
[1763524051042,6.12885606,140.25,140.21,0.66]
[1763524051269,5.43885606,140.24,140.21,0.66]